[Event "Bremer Silvester Open 2019"]
[Site "Bremen"]
[Date "2019.12.30"]
[Round "7.6"]
[White "Pienski, Olaf"]
[Black "Jung, Gerald"]
[Result "1/2-1/2"]
[ECO "B12"]
[WhiteElo "2001"]
[BlackElo "1918"]
[Annotator "NA"]
[PlyCount "74"]
[EventDate "2019.12.27"]
[EventType "swiss"]
[EventCountry "GER"]
[SourceTitle "playchess.com"]
[Source "ChessBase"]
[SourceQuality "1"]
[TimeControl "40/5400+30:1800+30"]

1. e4 {[%emt 0:00:00]} d6 {[%emt 0:00:00]} 2. d4 {[%emt 0:00:09]} Nd7 {[%emt 0:01:00]} 3. Nf3 {[%emt 0:02:51]} c6 {[%emt 0:00:08]} 4. c4 {[%emt 0:00:55]} h6 {[%emt 0:00:18]} 5. Nc3 {[%emt 0:00:37]} g5 {[%emt 0:00:16]} 6. Be3 {[%emt 0:11:56]} Bg7 {[%emt 0:01:36]} 7. Be2 {[%emt 0:07:53]} Nf8 {[%emt 0:06:30]} 8. Qc2 {[%emt 0:04:50]} Qa5 {[%emt 0:10:56]} 9. Nd2 {[%emt 0:03:28]} a6 $16 {[%emt 0:07:21]} (9... Nf6 $142) 10. Nb3 {[%emt 0:01:26]} Qc7 {[%emt 0:01:13]} 11. O-O-O {[%emt 0:02:54]} Ng6 {[%emt 0:04:53]} 12. g3 {[%emt 0:03:26]} Nf6 {[%emt 0:07:36]} 13. f3 {[%emt 0:03:37]} Bh3 {[%emt 0:15:25]} 14. Rhg1 {[%emt 0:03:03]} g4 {[%emt 0:10:41]} 15. f4 {[%emt 0:01:19]} e5 {[%emt 0:02:15]} 16. dxe5 {[%emt 0:02:13]} dxe5 {[%emt 0:00:07]} 17. f5 {[%emt 0:01:35]} Ne7 {[%emt 0:01:31]} 18. c5 {[%emt 0:02:10]} O-O {[%emt 0:02:22]} 19. Bc4 {[%emt 0:05:44]} Rad8 {[%emt 0:03:02]} 20. Rxd8 {[%emt 0:07:55]} Rxd8 {[%emt 0:00:02]} 21. Nd2 {[%emt 0:01:12]} Qd7 {[%emt 0:04:17]} 22. Qb3 {[%emt 0:02:38]} Ned5 {[%emt 0:00:20]} 23. Bxd5 {[%emt 0:08:14]} cxd5 {[%emt 0:00:11]} 24. Nxd5 {[%emt 0:01:00]} Nxd5 {[%emt 0:00:32]} 25. Qxd5 {[%emt 0:06:37]} Qxd5 {[%emt 0:00:03]} 26. exd5 {[%emt 0:00:12]} Rxd5 {[%emt 0:00:07]} 27. Kc2 {[%emt 0:02:26]} e4 {[%emt 0:02:35]} 28. Nxe4 {[%emt 0:03:48]} Rxf5 {[%emt 0:00:26]} 29. Nd6 {[%emt 0:00:59]} Rf3 {[%emt 0:00:19]} 30. Kd2 {[%emt 0:01:50]} Bf1 {[%emt 0:04:32]} 31. b4 {[%emt 0:02:12]} Bb2 {[%emt 0:02:27]} 32. Nxb7 {[%emt 0:02:00]} Ba3 {[%emt 0:00:19]} 33. Bxh6 {[%emt 0:02:26]} Bxb4+ {[%emt 0:00:01]} 34. Kc1 {[%emt 0:00:24]} Bb5 {[%emt 0:01:45]} 35. Rd1 {[%emt 0:00:49]} Bxc5 {[%emt 0:01:31]} 36. Nxc5 {[%emt 0:00:16]} Rc3+ {[%emt 0:00:02]} 37. Kb2 {[%emt 0:00:16]} Rxc5 {[%emt 0:00:02]} 1/2-1/2